Workbook

Sheet Начало
B1: ЗА ТОЗИ ШАБЛОН
B2: Използвайте работен лист за месечен бюджет за колежа за проследяване на приходите, разходите и паричните потоци.
B3: Въведете месечни приходи и разходи за изчисляване на общите приходи и разходи.
B4: Паричен поток се изчислява автоматично и диаграмата на паричен поток се актуализират за вас.
B5: Изберете плъзгача, за да получите приходи, разходи и диаграми за паричния поток за месец и година.
B6: Забележка:
B7: Допълнителни инструкции са предоставени в колона A в работния лист. Този текст е скрит нарочно. За да премахнете текста, изберете колона А, след което изберете DELETE. За да покажете текст, изберете колона A, след което променете цвета на шрифта.

Sheet Месечен бюджет за колежа
A1: Създайте месечен бюджет за колежа в този работен лист. Заглавието на този работен лист е в клетка вдясно и в клетка B1. Полезни инструкции как да използвате този работен лист, можете да намерите в клетките в тази колона. Следващата инструкция е в клетка A4. | B1: Месечен бюджет за колежа
A4: Етикет "Приход" е в клетка вдясно, а етикет "Разходи" е в клетка E4 и етикет „Паричен поток“ е в M4. | B4: =chart_calcs!$D$6 -> приход за януари : | E4: =chart_calcs!$D$7 -> разходи за януари : | M4: =chart_calcs!$D$8 -> паричен поток за януари :
A5: Приходът се актуализира автоматично в клетката вдясно, разходите в клетка E5, а паричен поток в M5. | B5: =" "&chart_calcs!$F$6 ->  | E5: =" "&chart_calcs!$F$7 ->  | M5: =" "&chart_calcs!$F$8 -> 169 лв.
A6: Пръстеновидна диаграма, показваща резюме на прихода в клетката вдясно, резюме на разходите в клетка E6 и стълбовидна диаграма, показваща положителен и отрицателен паричен поток в клетка M6 се актуализират автоматично. Следващата инструкция е в клетка A17. | B6: Пръстеновидната диаграма, показваща резюме на приходите за избрания месец или избраната година се намира в тази клетка. | E6: Пръстеновидната диаграма, показваща резюме на разходите за избрания месец или избраната година, се намира в тази клетка. | M6: Стълбовидна диаграма, показваща паричния поток за избрания месец или избраната година, се намира в тази клетка.
B16: Линейната диаграма, показваща паричния поток за избрания месец или избраната година се намира в тази клетка.
A17: Линейната диаграма на паричен поток се намира в клетката отдясно. Следващата инструкция е в клетка A21.
A21: Изберете плъзгача отдясно, за да получите данни и диаграми за месечен или годишен приход, разход и паричен поток. Следващата инструкция е в клетка A25. | B21: В тази клетка се намира плъзгачът.
A25: Изберете месец в клетка вдясно. Натискайте ALT+СТРЕЛКА НАДОЛУ за опции, а след това СТРЕЛКА НАДОЛУ и ENTER, за да направите избор. | B25: ЯНУ
A26: Избран период се актуализира автоматично в клетка P26. | P26: =ИзбранПериод -> 
A27: Етикетите са в този ред, етикет „Месечна сума след приспадане на разходи“ в клетката отдясно, месеци в клетки от C27 до N27, година в O27 и процентно увеличение в P27. | B27: Месечна сума след приспадане на разходи | C27: =ПървиМесец ->  | D27: =СледващМесец ->  | E27: =СледващМесец ->  | O27: ЗА ЯНУАРИ | P27: % ПРИХОД
A28: Етикет „Паричен поток“ е в клетката вдясно. Паричен поток за всеки месец се изчислява автоматично в клетки от C28 до N28, годишната сума в O28 и процентно увеличение в P28. „Спарклайн“ се актуализира автоматично в Q28. | B28: Паричен поток | C28: =C37-C72 -> 169 | D28: =D37-D72 -> 69 | E28: 192 | F28: 199 | G28: 204 | H28: -771 | I28: 124 | J28: 154 | K28: -721 | L28: 109 | M28: 34 | N28: -61 | O28: =SUM(C28:N28) -> -299 | P28: =INDEX($C28:$O28,,КолонаИзбранПериод)/INDEX($C$37:$O$37,,КолонаИзбранПериод) -> 
A29: Етикет „Кумулативен паричен поток“ е в клетката вдясно. Кумулативен паричен поток за всеки месец се изчислява автоматично в клетки от C29 до N29, годишна сума в O29 и процентно увеличение в P29. „Спарклайн“ се актуализира автоматично в Q29. Следващата инструкция е в клетка A31. | B29: Кумулативен паричен поток | C29: =SUM($C$28:C$28) -> 169 | D29: =SUM($C$28:D$28) -> 238 | E29: =SUM($C$28:E$28) -> 430 | F29: =SUM($C$28:F$28) -> 629 | G29: =SUM($C$28:G$28) -> 833 | H29: =SUM($C$28:H$28) -> 62 | I29: =SUM($C$28:I$28) -> 186 | J29: =SUM($C$28:J$28) -> 340 | K29: =SUM($C$28:K$28) -> -381 | L29: =SUM($C$28:L$28) -> -272 | M29: =SUM($C$28:M$28) -> -238 | N29: =SUM($C$28:N$28) -> -299
A31: Етикет „Месечен приход“ е в клетката вдясно, месеци в клетки от C31 до N31, година в O31 и процентно увеличение в P31. Въведете елементи „Месечен приход“ в клетките от B32 до B36 и месечни стойности в клетките от C32 до N36. Годишният приход се изчислява автоматично в клетките от O32 до O36 и процентното увеличение в клетките от P32 до P36. Следващата инструкция е в клетка A37. | B31: МЕСЕЧЕН ПРИХОД | C31: =ПървиМесец ->  | D31: =СледващМесец ->  | O31: ЗА ЯНУАРИ | P31: % ПРИХОД
B32: Финансова подкрепа (дарения, стипендии, заеми) изплатена към вас | C32: 0 | D32: 0 | E32: 750 | F32: 750 | G32: 750 | H32: 750 | I32: 750 | J32: 750 | K32: 750 | L32: 750 | M32: 750 | N32: 750 | O32: =SUM(C32:N32) -> 7,500 | P32: =INDEX($C32:$O32,,КолонаИзбранПериод)/INDEX($C$37:$O$37,,КолонаИзбранПериод) -> 
B33: Работно възнаграждение след данъци | C33: 450 | D33: 450 | E33: 450 | F33: 450 | G33: 450 | H33: 450 | I33: 450 | J33: 450 | K33: 550 | L33: 350 | M33: 350 | N33: 350 | O33: 5,200 | P33: =INDEX($C33:$O33,,КолонаИзбранПериод)/INDEX($C$37:$O$37,,КолонаИзбранПериод) -> 
B34: Финансова помощ от семейството | C34: 200 | D34: 200 | E34: 1,000 | F34: 350 | G34: 350 | H34: 350 | I34: 350 | J34: 350 | K34: 350 | L34: 350 | M34: 350 | N34: 350 | O34: 4,550 | P34: =INDEX($C34:$O34,,КолонаИзбранПериод)/INDEX($C$37:$O$37,,КолонаИзбранПериод) -> 
B35: Теглене от спестявания | C35: 500 | D35: 350 | E35: 150 | F35: 0 | G35: 0 | H35: 0 | I35: 0 | J35: 0 | K35: 0 | L35: 0 | M35: 0 | N35: 0 | O35: 1,000 | P35: =INDEX($C35:$O35,,КолонаИзбранПериод)/INDEX($C$37:$O$37,,КолонаИзбранПериод) -> 
B36: Други (детски помощи, обществена помощ, подаръци и др.) | C36: 75 | D36: 75 | E36: 75 | F36: 75 | G36: 75 | H36: 75 | I36: 75 | J36: 75 | K36: 75 | L36: 75 | M36: 75 | N36: 75 | O36: 900 | P36: =INDEX($C36:$O36,,КолонаИзбранПериод)/INDEX($C$37:$O$37,,КолонаИзбранПериод) -> 
A37: Етикет "Общи приходи" е в клетката вдясно. Общият приход за всеки месец се изчислява автоматично в клетки от C37 до N37, годишният приход в клетка O37 и процентното увеличение в P37. „Спарклайн“ се актуализира автоматично в Q37. Следващата инструкция е в клетка A39. | B37: ОБЩИ ПРИХОДИ | C37: =SUM(C32:C36) -> 1,225 | D37: 1,075 | E37: 2,425 | F37: 1,625 | G37: 1,625 | H37: 1,625 | I37: 1,625 | J37: 1,625 | K37: 1,725 | L37: 1,525 | M37: 1,525 | N37: 1,525 | O37: 19,150 | P37: =INDEX($C37:$O37,,КолонаИзбранПериод)/INDEX($C$37:$O$37,,КолонаИзбранПериод) -> 
A39: Етикет „Месечни разходи“ е в клетката вдясно, месеци в клетки от C39 до N39, година в O39 и процентно увеличение в P39. | B39: МЕСЕЧНИ РАЗХОДИ | C39: =ПървиМесец ->  | D39: =СледващМесец ->  | O39: ЗА ЯНУАРИ | P39: % ПРИХОД
A40: Въведете или променете разходен елемент в клетката вдясно и месечни стойности в клетките от C40 до N43. Годишната стойност се изчислява автоматично в клетките от O40 до O43 и процентното увеличение в клетките от P40 до P43. „Спарклайн“ се актуализира автоматично в Q40. Следващата инструкция е в клетка A45. | B40: Храна и квартира | C40: =SUM(C41:C43) -> 565 | D40: 565 | E40: 565 | F40: 565 | G40: 565 | H40: 565 | I40: 565 | J40: 565 | K40: 565 | L40: 565 | M40: 565 | N40: 565 | O40: =SUM(C40:N40) -> 6,780 | P40: =INDEX($C40:$O40,,КолонаИзбранПериод)/INDEX($C$72:$O$72,,КолонаИзбранПериод) -> 
C41: 315 | D41: 315 | E41: 315 | F41: 315 | G41: 315 | H41: 315 | I41: 315 | J41: 315 | K41: 315 | L41: 315 | M41: 315 | N41: 315 | O41: =SUM(C41:N41) -> 3,780 | P41: =INDEX($C41:$O41,,КолонаИзбранПериод)/INDEX($C$72:$O$72,,КолонаИзбранПериод) -> 
C42: 200 | D42: 200 | E42: 200 | F42: 200 | G42: 200 | H42: 200 | I42: 200 | J42: 200 | K42: 200 | L42: 200 | M42: 200 | N42: 200 | O42: =SUM(C42:N42) -> 2,400 | P42: =INDEX($C42:$O42,,КолонаИзбранПериод)/INDEX($C$72:$O$72,,КолонаИзбранПериод) -> 
C43: 50 | D43: 50 | E43: 50 | F43: 50 | G43: 50 | H43: 50 | I43: 50 | J43: 50 | K43: 50 | L43: 50 | M43: 50 | N43: 50 | O43: =SUM(C43:N43) -> 600 | P43: =INDEX($C43:$O43,,КолонаИзбранПериод)/INDEX($C$72:$O$72,,КолонаИзбранПериод) -> 
A45: Въведете или променете разходен елемент в клетката вдясно и месечни стойности в клетките от C45 до N47. Годишната стойност се изчислява автоматично в клетките от O45 до O47 и процентното увеличение в клетките от P45 до P47. „Спарклайн“ се актуализира автоматично в Q45. Следващата инструкция е в клетка A49. | B45: Обучение и такси | C45: =SUM(C46:C47) -> 0 | D45: 0 | E45: 750 | F45: 0 | G45: 0 | H45: 650 | I45: 0 | J45: 0 | K45: 650 | L45: 0 | M45: 0 | N45: 0 | O45: =SUM(C45:N45) -> 2,050 | P45: =INDEX($C45:$O45,,КолонаИзбранПериод)/INDEX($C$72:$O$72,,КолонаИзбранПериод) -> 
C46: 0 | D46: 0 | E46: 500 | F46: 0 | G46: 0 | H46: 500 | I46: 0 | J46: 0 | K46: 500 | L46: 0 | M46: 0 | N46: 0 | O46: =SUM(C46:N46) -> 1,500 | P46: =INDEX($C46:$O46,,КолонаИзбранПериод)/INDEX($C$72:$O$72,,КолонаИзбранПериод) -> 
C47: 0 | D47: 0 | E47: 250 | F47: 0 | G47: 0 | H47: 150 | I47: 0 | J47: 0 | K47: 150 | L47: 0 | M47: 0 | N47: 0 | O47: =SUM(C47:N47) -> 550 | P47: =INDEX($C47:$O47,,КолонаИзбранПериод)/INDEX($C$72:$O$72,,КолонаИзбранПериод) -> 
A49: Въведете или променете разходен елемент в клетката вдясно и месечни стойности в клетките от C49 до N51. Годишната стойност се изчислява автоматично в клетките от O49 до O51 и процентното увеличение в клетките от P49 до P51. „Спарклайн“ се актуализира автоматично в Q49. Следващата инструкция е в клетка A53. | B49: Книги и пособия | C49: =SUM(C50:C51) -> 0 | D49: 0 | E49: 325 | F49: 20 | G49: 20 | H49: 325 | I49: 10 | J49: 10 | K49: 400 | L49: 15 | M49: 15 | N49: 15 | O49: =SUM(C49:N49) -> 1,155 | P49: =INDEX($C49:$O49,,КолонаИзбранПериод)/INDEX($C$72:$O$72,,КолонаИзбранПериод) -> 
C50: 0 | D50: 0 | E50: 225 | F50: 0 | G50: 0 | H50: 275 | I50: 0 | J50: 0 | K50: 325 | L50: 0 | M50: 0 | N50: 0 | O50: =SUM(C50:N50) -> 825 | P50: =INDEX($C50:$O50,,КолонаИзбранПериод)/INDEX($C$72:$O$72,,КолонаИзбранПериод) -> 
C51: 0 | D51: 0 | E51: 100 | F51: 20 | G51: 20 | H51: 50 | I51: 10 | J51: 10 | K51: 75 | L51: 15 | M51: 15 | N51: 15 | O51: =SUM(C51:N51) -> 330 | P51: =INDEX($C51:$O51,,КолонаИзбранПериод)/INDEX($C$72:$O$72,,КолонаИзбранПериод) -> 
A53: Въведете или променете разходен елемент в клетката вдясно и месечни стойности в клетките от C53 до N57. Годишната стойност се изчислява автоматично в клетките от O53 до O57 и процентното увеличение в клетките от P53 до P57. „Спарклайн“ се актуализира автоматично в Q53. Следващата инструкция е в клетка A59. | B53: Транспорт | C53: =SUM(C54:C57) -> 224 | D53: 174 | E53: 174 | F53: 219 | G53: 174 | H53: 174 | I53: 274 | J53: 219 | K53: 174 | L53: 174 | M53: 224 | N53: 269 | O53: =SUM(C53:N53) -> 2,473 | P53: =INDEX($C53:$O53,,КолонаИзбранПериод)/INDEX($C$72:$O$72,,КолонаИзбранПериод) -> 
C54: 30 | D54: 30 | E54: 30 | F54: 75 | G54: 30 | H54: 30 | I54: 30 | J54: 75 | K54: 30 | L54: 30 | M54: 30 | N54: 75 | O54: =SUM(C54:N54) -> 495 | P54: =INDEX($C54:$O54,,КолонаИзбранПериод)/INDEX($C$72:$O$72,,КолонаИзбранПериод) -> 
C55: 129 | D55: 129 | E55: 129 | F55: 129 | G55: 129 | H55: 129 | I55: 129 | J55: 129 | K55: 129 | L55: 129 | M55: 129 | N55: 129 | O55: =SUM(C55:N55) -> 1,548 | P55: =INDEX($C55:$O55,,КолонаИзбранПериод)/INDEX($C$72:$O$72,,КолонаИзбранПериод) -> 
C56: 15 | D56: 15 | E56: 15 | F56: 15 | G56: 15 | H56: 15 | I56: 15 | J56: 15 | K56: 15 | L56: 15 | M56: 15 | N56: 15 | O56: =SUM(C56:N56) -> 180 | P56: =INDEX($C56:$O56,,КолонаИзбранПериод)/INDEX($C$72:$O$72,,КолонаИзбранПериод) -> 
C57: 50 | D57: 0 | E57: 0 | F57: 0 | G57: 0 | H57: 0 | I57: 100 | J57: 0 | K57: 0 | L57: 0 | M57: 50 | N57: 50 | O57: =SUM(C57:N57) -> 250 | P57: =INDEX($C57:$O57,,КолонаИзбранПериод)/INDEX($C$72:$O$72,,КолонаИзбранПериод) -> 
A59: Въведете или променете разходен елемент в клетката вдясно и месечни стойности в клетките от C59 до N65. Годишната стойност се изчислява автоматично в клетките от O59 до O65 и процентното увеличение в клетките от P59 до P65. „Спарклайн“ се актуализира автоматично в Q59. Следващата инструкция е в клетка A67. | B59: Допълнителни | C59: =SUM(C60:C65) -> 69 | D59: 69 | E59: 169 | F59: 369 | G59: 419 | H59: 444 | I59: 419 | J59: 419 | K59: 394 | L59: 394 | M59: 419 | N59: 469 | O59: =SUM(C59:N59) -> 4,053 | P59: =INDEX($C59:$O59,,КолонаИзбранПериод)/INDEX($C$72:$O$72,,КолонаИзбранПериод) -> 
C60: 0 | D60: 0 | E60: 0 | F60: 50 | G60: 100 | H60: 100 | I60: 100 | J60: 100 | K60: 75 | L60: 75 | M60: 100 | N60: 100 | O60: 800 | P60: =INDEX($C60:$O60,,КолонаИзбранПериод)/INDEX($C$72:$O$72,,КолонаИзбранПериод) -> 
C61: 69 | D61: 69 | E61: 69 | F61: 69 | G61: 69 | H61: 69 | I61: 69 | J61: 69 | K61: 69 | L61: 69 | M61: 69 | N61: 69 | O61: 828 | P61: =INDEX($C61:$O61,,КолонаИзбранПериод)/INDEX($C$72:$O$72,,КолонаИзбранПериод) -> 
C62: 0 | D62: 0 | E62: 0 | F62: 0 | G62: 0 | H62: 25 | I62: 0 | J62: 0 | K62: 0 | L62: 0 | M62: 0 | N62: 50 | O62: 75 | P62: =INDEX($C62:$O62,,КолонаИзбранПериод)/INDEX($C$72:$O$72,,КолонаИзбранПериод) -> 
C63: 0 | D63: 0 | E63: 100 | F63: 100 | G63: 100 | H63: 100 | I63: 100 | J63: 100 | K63: 100 | L63: 100 | M63: 100 | N63: 100 | O63: 1,000 | P63: =INDEX($C63:$O63,,КолонаИзбранПериод)/INDEX($C$72:$O$72,,КолонаИзбранПериод) -> 
C64: 0 | D64: 0 | E64: 0 | F64: 50 | G64: 50 | H64: 50 | I64: 50 | J64: 50 | K64: 50 | L64: 50 | M64: 50 | N64: 50 | O64: 450 | P64: =INDEX($C64:$O64,,КолонаИзбранПериод)/INDEX($C$72:$O$72,,КолонаИзбранПериод) -> 
C65: 0 | D65: 0 | E65: 0 | F65: 100 | G65: 100 | H65: 100 | I65: 100 | J65: 100 | K65: 100 | L65: 100 | M65: 100 | N65: 100 | O65: 900 | P65: =INDEX($C65:$O65,,КолонаИзбранПериод)/INDEX($C$72:$O$72,,КолонаИзбранПериод) -> 
A67: Въведете или променете разходен елемент в клетката вдясно и месечни стойности в клетките от C67 до N70. Годишната стойност се изчислява автоматично в клетките от O67 до O70 и процентното увеличение в клетките от P67 до P70. „Спарклайн“ се актуализира автоматично в Q67. Следващото указание е в клетка A72. | B67: Други разходи | C67: =SUM(C68:C70) -> 198 | D67: =SUM(D68:D70) -> 198 | E67: 250 | F67: 253 | G67: 243 | H67: 238 | I67: 233 | J67: 258 | K67: 263 | L67: 268 | M67: 268 | N67: 268 | O67: =SUM(C67:N67) -> 2,938 | P67: =INDEX($C67:$O67,,КолонаИзбранПериод)/INDEX($C$72:$O$72,,КолонаИзбранПериод) -> 
C68: 123 | D68: 123 | E68: 123 | F68: 123 | G68: 123 | H68: 123 | I68: 123 | J68: 123 | K68: 123 | L68: 123 | M68: 123 | N68: 123 | O68: =SUM(C68:N68) -> 1,476 | P68: =INDEX($C68:$O68,,КолонаИзбранПериод)/INDEX($C$72:$O$72,,КолонаИзбранПериод) -> 
C69: 0 | D69: 0 | E69: 52 | F69: 55 | G69: 45 | H69: 40 | I69: 35 | J69: 60 | K69: 65 | L69: 70 | M69: 70 | N69: 70 | O69: =SUM(C69:N69) -> 562 | P69: =INDEX($C69:$O69,,КолонаИзбранПериод)/INDEX($C$72:$O$72,,КолонаИзбранПериод) -> 
C70: 75 | D70: 75 | E70: 75 | F70: 75 | G70: 75 | H70: 75 | I70: 75 | J70: 75 | K70: 75 | L70: 75 | M70: 75 | N70: 75 | O70: =SUM(C70:N70) -> 900 | P70: =INDEX($C70:$O70,,КолонаИзбранПериод)/INDEX($C$72:$O$72,,КолонаИзбранПериод) -> 
A72: Етикет "Общи разходи" е в клетката вдясно. Общите разходи за всеки месец се изчисляват автоматично в клетките от C72 до N72, годишни разходи в клетка O72 и процентно увеличение в клетка P72. „Спарклайн“ се актуализира автоматично в Q72. | B72: ОБЩИ РАЗХОДИ | C72: =SUM(C40,C45,C49,C53,C59,C67) -> 1,056 | D72: 1,006 | E72: 2,233 | F72: 1,426 | G72: 1,421 | H72: 2,396 | I72: 1,501 | J72: 1,471 | K72: 2,446 | L72: 1,416 | M72: 1,491 | N72: 1,586 | O72: =SUM(C72:N72) -> 19,449 | P72: =INDEX($C72:$O72,,КолонаИзбранПериод)/INDEX($C$72:$O$72,,КолонаИзбранПериод) -> 

Sheet chart_calcs (hidden)
A1: *** Този лист трябва да остане СКРИТ ***
D3: =IFERROR(LOWER(TEXT(VALUE(ИзбранПериод&" 1"),"mmmm")),"за януари ") -> за януари
D5: Заглавия на динамични диаграми
D6: ="приход "&D3&":" -> приход за януари : | F6: =TEXT(INDEX('Месечен бюджет за колежа'!$C$37:$O$37,,КолонаИзбранПериод),"# ##0 лв.") -> 
D7: ="разходи "&D3&":" -> разходи за януари : | F7: =TEXT(INDEX('Месечен бюджет за колежа'!$C$72:$O$72,,КолонаИзбранПериод),"# ##0 лв.") -> 
D8: ="паричен поток "&D3&":" -> паричен поток за януари : | E8: =INDEX('Месечен бюджет за колежа'!C28:O28,СтойностПлъзгач) -> 169 | F8: =TEXT(E8,"# ##0 лв.") -> 169 лв.
D12: =LOWER('Месечен бюджет за колежа'!C27) ->  | E12: =LOWER('Месечен бюджет за колежа'!D27) ->  | F12: =LOWER('Месечен бюджет за колежа'!E27) ->  | G12: =LOWER('Месечен бюджет за колежа'!F27) ->  | H12: =LOWER('Месечен бюджет за колежа'!G27) ->  | I12: =LOWER('Месечен бюджет за колежа'!H27) ->  | J12: =LOWER('Месечен бюджет за колежа'!I27) ->  | K12: =LOWER('Месечен бюджет за колежа'!J27) ->  | L12: =LOWER('Месечен бюджет за колежа'!K27) ->  | M12: =LOWER('Месечен бюджет за колежа'!L27) ->  | N12: =LOWER('Месечен бюджет за колежа'!M27) ->  | O12: =LOWER('Месечен бюджет за колежа'!N27) ->  | P12: =LOWER('Месечен бюджет за колежа'!O27) -> за януари
C13: Стойност Плъзгач: | D13: 1
C14: Диаграма на паричния поток: | D14: =IF(ИзбранПериод='Месечен бюджет за колежа'!C$31,IF('Месечен бюджет за колежа'!$C$28:$O$28>=0,'Месечен бюджет за колежа'!$C$28:$O$28,NA()),NA()) ->  | E14: =IF(ИзбранПериод='Месечен бюджет за колежа'!D$31,IF('Месечен бюджет за колежа'!$C$28:$O$28>=0,'Месечен бюджет за колежа'!$C$28:$O$28,NA()),NA()) ->  | F14: =IF(ИзбранПериод='Месечен бюджет за колежа'!E$31,IF('Месечен бюджет за колежа'!$C$28:$O$28>=0,'Месечен бюджет за колежа'!$C$28:$O$28,NA()),NA()) ->  | G14: =IF(ИзбранПериод='Месечен бюджет за колежа'!F$31,IF('Месечен бюджет за колежа'!$C$28:$O$28>=0,'Месечен бюджет за колежа'!$C$28:$O$28,NA()),NA()) ->  | H14: =IF(ИзбранПериод='Месечен бюджет за колежа'!G$31,IF('Месечен бюджет за колежа'!$C$28:$O$28>=0,'Месечен бюджет за колежа'!$C$28:$O$28,NA()),NA()) ->  | I14: =IF(ИзбранПериод='Месечен бюджет за колежа'!H$31,IF('Месечен бюджет за колежа'!$C$28:$O$28>=0,'Месечен бюджет за колежа'!$C$28:$O$28,NA()),NA()) ->  | J14: =IF(ИзбранПериод='Месечен бюджет за колежа'!I$31,IF('Месечен бюджет за колежа'!$C$28:$O$28>=0,'Месечен бюджет за колежа'!$C$28:$O$28,NA()),NA()) ->  | K14: =IF(ИзбранПериод='Месечен бюджет за колежа'!J$31,IF('Месечен бюджет за колежа'!$C$28:$O$28>=0,'Месечен бюджет за колежа'!$C$28:$O$28,NA()),NA()) ->  | L14: =IF(ИзбранПериод='Месечен бюджет за колежа'!K$31,IF('Месечен бюджет за колежа'!$C$28:$O$28>=0,'Месечен бюджет за колежа'!$C$28:$O$28,NA()),NA()) ->  | M14: =IF(ИзбранПериод='Месечен бюджет за колежа'!L$31,IF('Месечен бюджет за колежа'!$C$28:$O$28>=0,'Месечен бюджет за колежа'!$C$28:$O$28,NA()),NA()) ->  | N14: =IF(ИзбранПериод='Месечен бюджет за колежа'!M$31,IF('Месечен бюджет за колежа'!$C$28:$O$28>=0,'Месечен бюджет за колежа'!$C$28:$O$28,NA()),NA()) ->  | O14: =IF(ИзбранПериод='Месечен бюджет за колежа'!N$31,IF('Месечен бюджет за колежа'!$C$28:$O$28>=0,'Месечен бюджет за колежа'!$C$28:$O$28,NA()),NA()) ->  | P14: =IF(ИзбранПериод='Месечен бюджет за колежа'!O$31,IF('Месечен бюджет за колежа'!$C$28:$O$28>=0,'Месечен бюджет за колежа'!$C$28:$O$28,NA()),NA()) -> 
C15: Кумулативно: | D15: =IF(ИзбранПериод='Месечен бюджет за колежа'!C$31,IF('Месечен бюджет за колежа'!$C$28:$O$28<0,'Месечен бюджет за колежа'!$C$28:$O$28,NA()),NA()) ->  | E15: =IF(ИзбранПериод='Месечен бюджет за колежа'!D$31,IF('Месечен бюджет за колежа'!$C$28:$O$28<0,'Месечен бюджет за колежа'!$C$28:$O$28,NA()),NA()) ->  | F15: =IF(ИзбранПериод='Месечен бюджет за колежа'!E$31,IF('Месечен бюджет за колежа'!$C$28:$O$28<0,'Месечен бюджет за колежа'!$C$28:$O$28,NA()),NA()) ->  | G15: =IF(ИзбранПериод='Месечен бюджет за колежа'!F$31,IF('Месечен бюджет за колежа'!$C$28:$O$28<0,'Месечен бюджет за колежа'!$C$28:$O$28,NA()),NA()) ->  | H15: =IF(ИзбранПериод='Месечен бюджет за колежа'!G$31,IF('Месечен бюджет за колежа'!$C$28:$O$28<0,'Месечен бюджет за колежа'!$C$28:$O$28,NA()),NA()) ->  | I15: =IF(ИзбранПериод='Месечен бюджет за колежа'!H$31,IF('Месечен бюджет за колежа'!$C$28:$O$28<0,'Месечен бюджет за колежа'!$C$28:$O$28,NA()),NA()) ->  | J15: =IF(ИзбранПериод='Месечен бюджет за колежа'!I$31,IF('Месечен бюджет за колежа'!$C$28:$O$28<0,'Месечен бюджет за колежа'!$C$28:$O$28,NA()),NA()) ->  | K15: =IF(ИзбранПериод='Месечен бюджет за колежа'!J$31,IF('Месечен бюджет за колежа'!$C$28:$O$28<0,'Месечен бюджет за колежа'!$C$28:$O$28,NA()),NA()) ->  | L15: =IF(ИзбранПериод='Месечен бюджет за колежа'!K$31,IF('Месечен бюджет за колежа'!$C$28:$O$28<0,'Месечен бюджет за колежа'!$C$28:$O$28,NA()),NA()) ->  | M15: =IF(ИзбранПериод='Месечен бюджет за колежа'!L$31,IF('Месечен бюджет за колежа'!$C$28:$O$28<0,'Месечен бюджет за колежа'!$C$28:$O$28,NA()),NA()) ->  | N15: =IF(ИзбранПериод='Месечен бюджет за колежа'!M$31,IF('Месечен бюджет за колежа'!$C$28:$O$28<0,'Месечен бюджет за колежа'!$C$28:$O$28,NA()),NA()) ->  | O15: =IF(ИзбранПериод='Месечен бюджет за колежа'!N$31,IF('Месечен бюджет за колежа'!$C$28:$O$28<0,'Месечен бюджет за колежа'!$C$28:$O$28,NA()),NA()) ->  | P15: =IF(ИзбранПериод='Месечен бюджет за колежа'!O$31,IF('Месечен бюджет за колежа'!$C$28:$O$28<0,'Месечен бюджет за колежа'!$C$28:$O$28,NA()),NA()) -> 
C18: ДИАГРАМАТА ЗА ДАННИ НА ПРИХОДИТЕ
C19: Финансова подкрепа (дарения, стипендии, заеми) изплатена към вас | D19: ='Месечен бюджет за колежа'!P32 -> 
C20: Работно възнаграждение след данъци | D20: ='Месечен бюджет за колежа'!P33 -> 
C21: Финансова помощ от семейството | D21: ='Месечен бюджет за колежа'!P34 -> 
C22: Теглене от спестявания | D22: ='Месечен бюджет за колежа'!P35 -> 
C23: Други (детски помощи, обществена помощ, подаръци и др.) | D23: ='Месечен бюджет за колежа'!P36 -> 
